bitfinex-derivatives/quotes_SOLF0:USTF0_20260305
["timestamp","ask_amount","ask_price","bid_price","bid_amount"]
[1772731939392,3.68767641,88.127,88.059,3.62712791]
[1772731940495,3.68767641,88.146,88.059,3.62712791]
[1772731940698,3.68767641,88.146,88.071,3.62712791]
[1772731941401,3.68767641,88.165,88.091,3.62712791]
[1772731941699,3.68767641,88.149,88.031,3.62712791]
[1772731942001,9.71722702,88.15,88.02,9.71722702]
[1772731942002,3.68767641,88.12,88.055,3.62712791]
[1772731942398,3.68767641,88.12,88.05,9.71722702]
[1772731942399,3.68767641,88.12,88.057,13.84612791]
[1772731942601,3.68767641,88.12,88.057,3.62712791]
[1772731943695,10.212,88.117,88.057,3.62712791]
[1772731944304,10.213,88.108,88.057,3.62712791]
[1772731944505,3.68767641,88.117,88.057,3.62712791]
[1772731945302,3.68767641,88.117,88.001,20.451]
[1772731945303,3.68767641,88.117,88.021,3.62712791]
[1772731945499,3.68767641,88.117,88.02,9.71722702]
[1772731945500,3.68767641,88.105,88.001,3.62712791]
[1772731945696,3.68767641,88.099,88.001,3.62712791]
[1772731946196,3.68767641,88.099,88.033,3.62712791]
[1772731946805,3.68767641,88.099,88.054,10.219]
[1772731947103,3.68767641,88.099,88.033,3.62712791]
[1772731947499,3.68767641,88.099,88.001,3.63182176]
[1772731947698,3.74864189,88.089,88.001,3.63182176]
[1772731947900,10.219,88.052,88.001,3.63182176]
[1772731948104,3.74864189,88.06,88.001,3.63182176]
[1772731948496,10.219,88.058,88.001,13.85682176]
[1772731948702,3.74864189,88.06,88.001,3.63182176]
[1772731949010,10.22,88.05,88.001,3.63182176]
[1772731950100,0.0717161,88.034,88.001,3.63182176]
[1772731950406,0.0717161,88.034,87.97,9.71722702]
[1772731950407,0.0717161,88.034,87.976,10.228]
[1772731950706,0.0717161,88.034,87.977,3.8120246]
[1772731950897,3.70600736,88.041,87.931,3.8120246]
[1772731951098,3.70600736,88.041,87.942,3.8120246]
[1772731951402,3.70600736,88.041,87.93,9.71722702]
[1772731951403,3.70600736,88.029,87.956,3.8120246]
[1772731952206,3.70600736,88.029,87.967,14.0410246]
[1772731952505,3.70600736,88.029,87.968,3.8120246]
[1772731952900,3.70600736,88.029,87.947,3.8120246]
[1772731953305,3.70600736,88.028,87.957,3.8120246]
[1772731953807,3.70600736,88.028,87.937,10.233]
[1772731954108,3.70600736,88.009,87.912,3.8120246]
[1772731954303,3.70600736,88.005,87.936,3.8120246]
[1772731954498,3.70600736,88.025,87.94,9.71722702]
[1772731954697,3.70600736,88.025,87.941,3.8120246]
[1772731955000,3.70600736,88.044,87.961,3.8120246]
[1772731956410,3.70600736,88.044,87.982,3.8120246]
[1772731957209,3.70600736,88.033,87.973,10.228]
[1772731957412,3.70600736,88.033,87.96,3.8120246]
[1772731957601,174.4215881,88.073,87.941,3.8120246]
[1772731957602,3.70600736,88.029,87.941,3.8120246]
[1772731957804,3.70600736,88.015,87.941,3.8120246]
[1772731959511,13.93000736,88.013,87.95,10.231]
[1772731959810,9.71722702,88.03,87.941,3.8120246]
[1772731959811,3.70600736,88.012,87.941,3.8120246]
[1772731960012,10.225,88.001,87.941,3.8120246]
[1772731960408,3.70600736,88.012,87.941,3.8120246]
[1772731960604,3.70600736,88.012,87.951,10.231]
[1772731960809,3.70600736,88.012,87.941,3.8120246]
[1772731961007,3.70600736,88.012,87.96,10.23]
[1772731961210,3.70600736,88.012,87.941,3.8120246]
[1772731961614,10.224,88.008,87.945,3.8120246]
[1772731961913,9.71722702,88.03,87.945,3.8120246]
[1772731961914,3.70600736,88.007,87.945,3.8120246]
[1772731962814,10.225,88.006,87.947,10.231]
[1772731964512,10.225,88.006,87.955,10.23]
[1772731964910,10.225,88.006,87.945,3.8120246]
[1772731965613,10.223,88.016,87.945,3.8120246]
[1772731966113,3.70600736,88.045,87.972,3.8120246]
[1772731966614,9.71722702,88.05,87.972,3.8120246]
[1772731966615,3.70600736,88.031,87.972,3.8120246]
[1772731967310,3.70600736,88.029,87.977,10.228]
[1772731967610,3.70600736,88.029,87.954,3.8120246]
[1772731967816,3.70600736,88.029,87.961,3.8120246]
[1772731968011,3.70600736,88.029,87.986,10.227]
[1772731968212,10.221,88.04,87.986,10.227]
[1772731968415,9.71722702,88.05,87.986,10.227]
[1772731968416,3.70600736,88.048,87.986,3.8120246]
[1772731968619,3.70600736,88.048,87.995,10.226]
[1772731968816,3.70600736,88.048,87.986,3.8120246]
[1772731970620,3.70600736,88.048,87.996,10.226]
[1772731971117,3.70600736,88.066,87.986,3.8120246]
[1772731971318,10.218,88.059,88.003,10.225]
[1772731972112,10.22,88.046,87.993,3.8120246]
[1772731972417,3.70600736,88.066,87.993,3.8120246]
[1772731972610,10.219,88.057,88.008,10.224]
[1772731972807,3.70600736,88.066,87.993,3.8120246]
[1772731973213,10.217,88.071,88.001,3.8120246]
[1772731973718,3.70600736,88.089,88.001,3.8120246]
[1772731974014,3.70600736,88.107,88.024,3.8120246]
[1772731974312,3.70600736,88.129,88.024,3.8120246]
[1772731974818,3.70600736,88.129,88.053,10.219]
[1772731975318,10.212,88.116,88.058,10.218]
[1772731976020,10.211,88.125,88.066,10.217]
[1772731976216,0.07182175,88.096,88.066,10.217]
[1772731976416,0.07182175,88.096,88.054,3.8120246]
[1772731976616,0.07182175,88.096,88.057,10.219]
[1772731976814,0.07182175,88.096,88.054,3.8120246]
[1772731977114,0.07182175,88.096,88.021,3.8120246]
[1772731977316,0.07182175,88.096,88.044,3.8120246]
[1772731977515,3.70600736,88.095,88.003,3.8120246]
[1772731978225,3.70600736,88.093,88.032,3.8120246]
[1772731978424,0.07180509,88.058,88.032,3.8120246]
[1772731978621,3.70600736,88.111,88.032,3.8120246]
[1772731978817,3.70600736,88.107,88.032,3.8120246]
[1772731979423,3.70600736,88.107,88.043,10.22]
[1772731979727,3.70600736,88.107,88.032,3.8120246]
[1772731980026,3.70600736,88.107,88.063,10.218]
[1772731980528,3.86881843,88.129,88.087,10.215]
[1772731981027,3.86881843,88.129,88.078,10.216]
[1772731981421,3.86881843,88.129,88.07,3.87262984]
[1772731981623,3.86881843,88.145,88.07,3.87262984]
[1772731981824,3.86881843,88.129,88.041,3.87262984]
[1772731982322,3.86881843,88.147,88.059,3.87262984]
[1772731982533,3.86881843,88.147,88.061,3.87262984]
[1772731983025,9.71065847,88.19,88.094,3.87262984]
[1772731983225,9.71065847,88.21,88.101,3.87262984]
[1772731983427,9.71065847,88.21,88.13,10.21]
[1772731984228,10.202,88.198,88.13,10.21]
[1772731984428,9.71065847,88.21,88.123,3.87262984]
[1772731984626,9.71065847,88.19,88.123,3.87262984]
[1772731985234,3.86881843,88.18,88.123,3.87262984]
[1772731985633,3.86881843,88.201,88.123,3.87262984]
[1772731985829,3.86881843,88.201,88.137,14.08162984]
[1772731986529,3.86881843,88.201,88.139,10.209]
[1772731986723,3.86881843,88.201,88.138,3.87262984]
[1772731986927,3.86881843,88.222,88.141,3.87262984]
[1772731987233,10.203,88.193,88.121,3.87262984]
[1772731987526,3.86881843,88.199,88.121,3.87262984]
[1772731987931,10.204,88.187,88.121,3.87262984]
[1772731988422,10.205,88.175,88.121,3.87262984]
[1772731988635,3.86881843,88.18,88.101,3.87262984]
[1772731988831,9.71065847,88.19,88.081,3.87262984]
[1772731988832,3.86881843,88.169,88.081,3.87262984]
[1772731990427,3.86881843,88.188,88.111,3.87262984]
[1772731991127,9.71065847,88.22,88.083,179.348]
[1772731991128,10.203,88.197,88.135,10.21]
[1772731991322,3.86881843,88.2,88.121,3.87262984]
[1772731991626,3.86881843,88.199,88.121,3.87262984]
[1772731992526,10.202,88.198,88.142,10.209]
[1772731992925,3.86881843,88.199,88.14,3.87262984]
[1772731993131,3.86881843,88.199,88.101,3.87262984]
[1772731993332,3.86881843,88.199,88.122,3.87262984]
[1772731994634,158.611,88.253,88.122,3.87262984]
[1772731994635,3.86881843,88.185,88.122,3.87262984]
[1772731997637,3.86881843,88.185,88.139,10.209]
[1772731998532,10.204,88.184,88.129,10.21]
[1772731998728,3.86881843,88.205,88.13,3.87262984]
[1772731998938,3.86881843,88.189,88.13,3.87262984]
[1772731999935,9.71065847,88.2,88.13,3.87262984]
[1772732000431,13.5794769,88.2,88.13,3.87262984]
[1772732000835,3.86881843,88.198,88.138,10.209]
[1772732001632,10.204,88.183,88.13,14.08262984]
[1772732001832,7.9794769,88.2,88.13,3.87262984]
[1772732002730,9.71065847,88.22,88.13,3.87262984]
[1772732002931,9.71065847,88.22,88.156,0.07182515]
[1772732003336,10.201,88.21,88.159,10.207]
[1772732003540,9.71065847,88.22,88.152,3.87262984]
[1772732003737,3.08280758,88.219,88.133,3.87262984]
[1772732004236,10.203,88.188,88.133,3.87262984]
[1772732004436,3.08304877,88.199,88.133,3.87262984]
[1772732004631,3.08304877,88.199,88.125,10.211]
[1772732004833,3.08304877,88.179,88.101,3.87262984]
[1772732005433,3.01102202,88.161,88.101,3.87262984]
[1772732006238,12.82010873,88.18,88.101,3.87262984]
[1772732006438,12.82010873,88.18,88.119,3.87262984]
[1772732006633,3.24608516,88.179,88.119,3.87262984]
[1772732007732,3.38593333,88.197,88.119,3.87262984]
[1772732008236,3.38593333,88.179,88.119,3.87262984]
[1772732008438,0.07156888,88.167,88.119,3.87262984]
[1772732010939,0.07156888,88.167,88.129,4.31589132]
[1772732011437,10.206,88.169,88.115,10.212]
[1772732011639,3.92767002,88.179,88.107,4.31589132]
[1772732011941,4.03029351,88.197,88.107,4.31589132]
[1772732012340,4.03029351,88.197,88.142,14.52489132]
[1772732012544,4.03029351,88.197,88.143,4.31589132]
[1772732012842,4.03029351,88.197,88.117,4.31589132]
[1772732014042,10.203,88.196,88.145,10.208]
[1772732014841,10.203,88.189,88.138,10.209]
[1772732015045,10.203,88.189,88.139,4.31589132]
[1772732015348,14.23229351,88.197,88.14,10.209]
[1772732015540,436.92256572,88.199,88.14,4.31589132]
[1772732016942,436.92256572,88.199,88.163,10.206]
[1772732017143,4.03029351,88.235,88.156,4.31589132]
[1772732017344,6.49058929,88.234,88.156,4.31589132]
[1772732018044,10.199,88.226,88.178,10.205]
[1772732018643,25.77353674,88.234,88.187,10.204]
[1772732018839,6.49058929,88.233,88.172,4.31589132]
[1772732019043,6.49058929,88.234,88.172,4.31589132]
[1772732019242,4.03029351,88.235,88.172,4.31589132]
[1772732019243,6.49058929,88.233,88.172,4.31589132]
[1772732019442,6.49058929,88.232,88.172,4.31589132]
[1772732019639,10.2,88.218,88.172,4.31589132]
[1772732020444,4.03029351,88.23,88.156,4.31589132]
[1772732020644,4.03029351,88.228,88.156,4.31589132]
[1772732021445,4.03029351,88.228,88.181,10.204]
[1772732021644,4.03029351,88.228,88.154,4.31589132]
[1772732021842,4.03029351,88.226,88.154,4.31589132]
[1772732022046,4.03029351,88.224,88.154,4.31589132]
[1772732022248,4.03029351,88.22,88.164,10.206]
[1772732022647,4.03029351,88.22,88.154,4.31589132]
[1772732023544,4.03029351,88.22,88.179,10.204]
[1772732024650,9.1061964,88.231,88.179,10.204]
[1772732024855,4.03029351,88.258,88.18,4.31589132]
[1772732025045,9.13307002,88.257,88.181,4.31589132]
[1772732025250,9.13307002,88.256,88.181,4.31589132]
[1772732025550,9.13307002,88.255,88.208,10.201]
[1772732025843,4.03029351,88.258,88.216,10.2]
[1772732026256,9.13174588,88.274,88.198,4.31589132]
[1772732026453,9.13174588,88.274,88.18,9.71065847]
[1772732026454,9.13174588,88.273,88.224,14.51489132]
[1772732026754,9.13174588,88.272,88.224,14.51489132]
[1772732026944,9.13174588,88.271,88.224,14.51489132]
[1772732027145,9.13174588,88.27,88.224,14.51489132]
[1772732027348,4.03029351,88.275,88.224,14.51489132]
[1772732027748,10.194,88.274,88.213,10.2]
[1772732027948,10.31328134,88.295,88.161,179.19]
[1772732027949,0.07200101,88.258,88.203,4.31589132]
[1772732028153,4.03029351,88.257,88.181,4.31589132]
[1772732029247,4.03029351,88.244,88.181,4.31589132]
[1772732029554,4.03029351,88.244,88.16,9.71065847]
[1772732029555,4.03029351,88.239,88.161,4.31589132]
[1772732030152,4.03029351,88.234,88.174,10.205]
[1772732030853,10.198,88.232,88.174,10.205]
[1772732031154,14.22829351,88.232,88.174,10.205]
[1772732031352,4.03029351,88.224,88.174,10.205]
[1772732031758,4.03029351,88.224,88.163,10.206]
[1772732031956,10.2,88.219,88.163,10.206]
[1772732032257,10.2,88.219,88.161,4.31589132]
[1772732032757,4.03029351,88.224,88.17,10.205]
[1772732033246,4.03029351,88.222,88.161,14.52289132]
[1772732033448,4.03029351,88.222,88.161,4.31589132]
[1772732034757,4.03029351,88.222,88.169,10.206]
[1772732036656,10.2,88.214,88.161,14.52189132]
[1772732038762,10.2,88.214,88.17,10.205]
[1772732038963,9.02007745,88.239,88.171,4.31589132]
[1772732039158,4.03029351,88.241,88.12,62.0]
[1772732039159,4.03029351,88.241,88.191,10.203]
[1772732039361,4.03029351,88.262,88.188,4.31589132]
[1772732039764,4.03029351,88.262,88.199,4.31589132]
[1772732039961,4.03029351,88.278,88.199,4.31589132]
[1772732040361,10.194,88.268,88.207,6.05894236]
[1772732041068,5.81221404,88.259,88.19,6.05894236]
[1772732041659,5.81221404,88.239,88.161,6.05894236]
[1772732042066,10.2,88.222,88.166,10.206]
[1772732042465,10.2,88.222,88.161,6.05894236]
[1772732043066,9.71065847,88.24,88.161,6.05894236]
[1772732043067,5.81221404,88.229,88.174,10.205]
[1772732043264,9.71065847,88.22,88.142,6.05894236]
[1772732043459,5.81221404,88.219,88.142,6.05894236]
[1772732043661,10.202,88.202,88.145,10.208]
[1772732043870,5.81221404,88.219,88.142,6.05894236]
[1772732044073,5.81221404,88.218,88.142,6.05894236]
[1772732045372,5.81221404,88.218,88.163,6.05894236]
[1772732045565,10.199,88.227,88.163,6.05894236]
[1772732046265,10.199,88.227,88.13,9.69635994]
[1772732046266,16.01021404,88.236,88.175,6.05894236]
[1772732046461,5.81221404,88.236,88.175,6.05894236]
[1772732047472,5.81221404,88.236,88.166,10.206]
[1772732047970,9.69635994,88.25,88.158,6.05894236]
[1772732047971,10.202,88.204,88.158,6.05894236]
[1772732048466,5.81221404,88.209,88.158,6.05894236]
[1772732048672,5.81221404,88.226,88.158,6.05894236]
[1772732049471,5.81221404,88.209,88.141,6.05894236]
[1772732049973,10.202,88.202,88.143,16.26794236]
[1772732050370,5.81221404,88.209,88.143,6.05894236]
[1772732050572,13.49946686,88.244,88.143,6.05894236]
[1772732050573,5.81221404,88.224,88.143,6.05894236]
[1772732050772,5.81221404,88.244,88.151,6.05894236]
[1772732050969,5.81221404,88.243,88.151,6.05894236]
[1772732051375,5.81221404,88.243,88.182,6.05894236]
[1772732051770,10.197,88.242,88.19,10.203]
[1772732052680,5.81221404,88.263,88.191,6.05894236]
[1772732053077,5.81221404,88.263,88.207,0.07165554]
[1772732053278,10.197,88.246,88.207,0.07165554]
[1772732053672,10.197,88.246,88.194,10.203]
[1772732053877,5.81221404,88.249,88.151,6.05894236]
[1772732054781,10.198,88.231,88.183,10.204]
[1772732055477,10.199,88.224,88.175,16.26394236]
[1772732056183,5.81221404,88.246,88.183,6.05894236]
[1772732056785,10.197,88.242,88.188,10.203]
[1772732057284,5.81221404,88.246,88.15,9.69635994]
[1772732057285,5.81221404,88.246,88.193,6.05894236]
[1772732057487,21.16477585,88.264,88.193,6.05894236]
[1772732057777,5.81221404,88.262,88.193,6.05894236]
[1772732057981,9.04416987,88.261,88.193,6.05894236]
[1772732058179,9.04416987,88.26,88.193,6.05894236]
[1772732058379,5.81221404,88.258,88.219,0.071589]
[1772732058582,5.81221404,88.256,88.219,0.071589]
[1772732058783,10.197,88.245,88.219,0.071589]
[1772732059388,10.198,88.238,88.193,6.05894236]
[1772732059886,5.81221404,88.269,88.21,10.201]
[1772732060085,10.196,88.257,88.21,10.201]
[1772732060287,8.96324641,88.256,88.21,6.05894236]
[1772732060487,8.96324641,88.268,88.21,6.05894236]
[1772732060686,15.28117137,88.286,88.21,6.05894236]
[1772732060986,8.96324641,88.285,88.211,6.05894236]
[1772732061179,5.81221404,88.306,88.21,9.69635994]
[1772732061180,10.191,88.296,88.233,6.05894236]
[1772732061489,8.96324641,88.295,88.233,6.05894236]
[1772732061684,8.96324641,88.294,88.24,10.197]
[1772732061894,8.96324641,88.293,88.24,10.197]
[1772732062095,8.96324641,88.292,88.24,10.197]
[1772732062390,8.96324641,88.295,88.24,10.197]
[1772732062689,5.81221404,88.288,88.214,6.05894236]
[1772732062880,5.81221404,88.286,88.214,6.05894236]
[1772732063089,5.81221404,88.284,88.214,6.05894236]
[1772732063283,6.31792496,88.289,88.214,6.05894236]
[1772732063284,5.81221404,88.282,88.214,6.05894236]
[1772732063489,10.195,88.261,88.214,6.05894236]
[1772732063690,10.195,88.261,88.15,30.11235994]
[1772732063691,5.81221404,88.261,88.195,6.05894236]
[1772732064184,5.81221404,88.259,88.195,6.05894236]
[1772732064489,8.94820426,88.269,88.195,6.05894236]
[1772732064693,5.81221404,88.277,88.195,6.05894236]
[1772732065494,10.194,88.269,88.195,6.05894236]
[1772732066593,10.194,88.269,88.221,10.2]
[1772732066795,10.194,88.274,88.221,10.2]
[1772732067094,5.81221404,88.277,88.212,6.05894236]
[1772732067393,5.81221404,88.277,88.194,7.08024562]
[1772732068395,10.195,88.258,88.208,10.201]
[1772732068894,5.81221404,88.277,88.208,7.08024562]
[1772732069789,15.087103,88.289,88.226,7.08024562]
[1772732069996,16.08392109,88.295,88.226,7.08024562]
[1772732070193,8.94820426,88.294,88.226,7.08024562]
[1772732070393,13.49946686,88.314,88.226,7.08024562]
[1772732070394,10.193,88.281,88.227,7.07549869]
[1772732070599,6.80945841,88.292,88.227,7.07549869]
[1772732070993,10.194,88.266,88.227,7.07549869]
[1772732071601,6.80945841,88.292,88.211,7.07549869]
[1772732072200,10.192,88.29,88.235,17.27349869]
[1772732072501,6.80945841,88.292,88.235,17.27349869]
[1772732073395,10.192,88.284,88.235,17.27349869]
[1772732073794,6.80945841,88.283,88.214,7.07549869]
[1772732074193,10.195,88.26,88.214,7.07549869]
[1772732074602,6.80945841,88.259,88.205,10.201]
[1772732074996,6.80945841,88.259,88.191,7.07549869]
[1772732076001,10.198,88.238,88.192,10.203]
[1772732078999,10.199,88.229,88.174,7.07549869]
[1772732080199,8.94762244,88.259,88.174,7.07549869]
[1772732080397,6.80945841,88.258,88.174,7.07549869]
[1772732080899,6.80945841,88.238,88.174,7.07549869]
[1772732081103,9.69635994,88.26,88.151,7.07549869]
[1772732081104,6.80945841,88.219,88.151,7.07549869]
[1772732082305,6.80945841,88.219,88.152,10.208]
[1772732082703,6.80945841,88.202,88.134,10.21]
[1772732083009,6.80945841,88.199,88.131,7.07549869]
[1772732084503,6.80945841,88.199,88.141,10.209]
[1772732084702,6.80945841,88.199,88.131,7.07549869]
[1772732086011,6.80945841,88.199,88.156,10.207]
[1772732087914,6.80945841,88.216,88.147,7.07549869]
[1772732088411,6.80945841,88.209,88.15,10.208]
[1772732089014,6.80945841,88.199,88.129,7.07549869]
[1772732089912,6.80945841,88.199,88.155,10.207]
[1772732091709,6.80945841,88.216,88.145,7.07549869]
[1772732092110,6.80945841,88.209,88.131,7.07549869]
[1772732092714,6.80945841,88.209,88.16,10.207]
[1772732093117,6.80945841,88.209,88.131,7.07549869]
[1772732093316,17.01245841,88.196,88.135,7.07549869]
[1772732093613,6.80945841,88.196,88.135,7.07549869]
[1772732094217,6.80945841,88.196,88.143,10.209]
[1772732095220,10.203,88.195,88.143,10.209]
[1772732095408,10.203,88.195,88.143,17.28449869]
[1772732095613,6.80945841,88.196,88.147,10.208]
[1772732096318,6.80945841,88.195,88.136,10.209]
[1772732096620,6.80945841,88.195,88.1,62.0]
[1772732096621,6.80945841,88.179,88.101,7.07549869]
[1772732096916,6.80945841,88.159,88.065,7.07549869]
[1772732097324,6.80945841,88.159,88.06,9.69635994]
[1772732097325,6.80945841,88.159,88.091,7.07549869]
[1772732097614,6.80945841,88.159,88.074,7.07549869]
[1772732097816,6.80945841,88.139,88.074,7.07549869]
[1772732098017,6.80945841,88.139,88.051,7.07549869]
[1772732098217,6.80945841,88.119,88.051,7.07549869]
[1772732098417,6.80945841,88.106,88.036,10.221]
[1772732098818,6.80945841,88.106,88.044,10.22]
[1772732099925,6.80945841,88.106,87.993,20.453]
[1772732099926,6.80945841,88.119,88.053,7.07549869]
[1772732100623,7.40087754,88.117,88.056,7.75711327]
[1772732100819,9.69635994,88.14,88.056,7.75711327]
[1772732100820,7.40087754,88.139,88.056,7.75711327]
[1772732101024,7.40087754,88.139,88.081,10.216]
[1772732101224,7.40087754,88.139,88.081,7.75711327]
[1772732101425,7.40087754,88.169,88.081,7.75711327]
[1772732101827,10.209,88.144,88.081,7.75711327]
[1772732102925,7.40087754,88.14,88.081,7.75711327]
[1772732104623,8.82947148,88.184,87.999,159.067]
[1772732104624,7.40087754,88.135,88.051,7.75711327]
[1772732105124,7.40087754,88.135,88.05,9.71226992]
[1772732105125,10.21,88.134,88.072,17.97411327]
[1772732105720,10.211,88.123,88.072,7.75711327]
[1772732105921,7.40087754,88.135,88.072,7.75711327]
[1772732106124,7.40087754,88.159,88.072,7.75711327]
[1772732106526,7.40087754,88.152,88.072,7.75711327]
[1772732106820,7.40087754,88.119,88.051,7.75711327]
[1772732107023,9.71226992,88.12,88.032,7.75711327]
[1772732107024,7.40087754,88.103,88.032,7.75711327]
[1772732107932,7.40087754,88.096,88.032,7.75711327]
[1772732108124,7.40087754,88.119,88.032,7.75711327]
[1772732108319,9.71226992,88.12,88.049,7.75711327]
[1772732108320,7.40087754,88.115,88.049,7.75711327]
[1772732108723,7.40087754,88.115,88.05,9.71226992]
[1772732108923,7.40087754,88.136,88.051,7.75711327]
[1772732109228,7.40087754,88.135,88.051,7.75711327]
[1772732109726,7.40087754,88.157,88.071,7.75711327]
[1772732109923,7.40087754,88.176,88.091,7.75711327]
[1772732110928,7.40087754,88.197,88.133,10.21]
[1772732111130,7.40087754,88.197,88.129,7.75711327]
[1772732111531,7.40087754,88.197,88.139,10.209]
[1772732112031,10.201,88.214,88.149,7.75711327]
[1772732112940,10.201,88.207,88.149,7.75711327]
[1772732113142,7.40087754,88.206,88.126,7.75711327]
[1772732113641,7.40087754,88.204,88.137,10.209]
[1772732113836,7.40087754,88.204,88.126,7.75711327]
[1772732113837,7.40087754,88.199,88.106,7.75711327]
[1772732115035,17.60387754,88.19,88.106,7.75711327]
[1772732115241,7.40087754,88.19,88.106,7.75711327]
[1772732115440,7.40087754,88.21,88.106,7.75711327]
[1772732115939,7.40087754,88.199,88.106,7.75711327]
[1772732117239,10.204,88.182,88.119,7.75711327]
[1772732117437,7.40087754,88.199,88.119,7.75711327]
[1772732117836,9.71226992,88.2,88.119,7.75711327]
[1772732117837,10.205,88.175,88.119,7.75711327]
[1772732118141,7.40087754,88.198,88.099,7.75711327]
[1772732118936,7.40087754,88.191,88.121,10.211]
[1772732119337,7.40087754,88.191,88.118,7.75711327]
[1772732119536,7.40087754,88.191,88.09,9.71226992]
[1772732119537,7.40087754,88.191,88.123,7.75711327]
[1772732119735,7.40087754,88.191,88.102,7.75711327]
[1772732120945,7.40087754,88.191,88.121,7.75711327]
[1772732121144,7.40087754,88.212,88.121,7.75711327]
[1772732121445,10.205,88.177,88.121,7.75711327]
[1772732121644,7.40087754,88.178,88.121,7.75711327]
[1772732121846,7.40087754,88.199,88.121,7.75711327]
[1772732122040,10.203,88.188,88.131,10.21]
[1772732122748,7.40087754,88.199,88.139,10.209]
[1772732122948,7.40087754,88.218,88.14,7.75711327]
[1772732123747,7.40087754,88.217,88.156,10.207]
[1772732124043,7.40087754,88.217,88.157,7.75711327]
[1772732124451,10.2,88.215,88.159,10.207]
[1772732124845,7.40087754,88.217,88.105,20.426]
[1772732125048,7.40087754,88.199,88.121,7.75711327]
[1772732125452,9.71226992,88.2,88.105,10.213]
[1772732125453,10.206,88.162,88.105,10.213]
[1772732125746,10.206,88.162,88.042,158.99]
[1772732125747,9.71226992,88.16,88.081,7.75711327]
[1772732125950,7.40087754,88.159,88.081,7.75711327]
[1772732126549,10.208,88.145,88.081,7.75711327]
[1772732127151,10.207,88.154,88.081,7.75711327]
[1772732128047,10.209,88.143,88.082,10.216]
[1772732128354,8.00387055,88.154,88.06,9.71226992]
[1772732128355,8.00387055,88.154,88.083,8.49262974]
[1772732128855,8.00387055,88.154,88.099,10.214]
[1772732129055,8.00387055,88.154,88.083,8.49262974]
[1772732130052,10.208,88.15,88.083,8.49262974]
[1772732130251,8.00387055,88.154,88.083,8.49262974]
[1772732131560,8.00387055,88.154,88.102,10.213]
[1772732134055,10.206,88.163,88.109,10.212]
[1772732134260,10.206,88.163,88.101,8.7022875]
[1772732134261,10.205,88.172,88.101,8.7022875]
[1772732134454,8.43758346,88.173,88.101,8.7022875]
[1772732134953,10.206,88.164,88.108,10.213]
[1772732135560,8.43758346,88.173,88.101,8.7022875]
[1772732135757,8.43758346,88.164,88.101,8.7022875]
[1772732136852,8.43758346,88.154,88.078,8.7022875]
[1772732139355,8.43758346,88.125,88.055,8.7022875]
[1772732139764,8.43758346,88.119,88.02,9.71226992]
[1772732140057,8.43758346,88.101,88.021,8.7022875]
[1772732140456,8.89756812,88.119,88.021,8.7022875]
[1772732140457,18.65258346,88.087,88.024,10.222]
[1772732140656,8.43758346,88.086,88.021,8.7022875]
[1772732141456,8.43758346,88.086,88.023,8.7022875]
[1772732141655,8.43758346,88.098,88.023,8.7022875]
[1772732141856,8.43758346,88.077,88.007,10.224]
[1772732142257,8.43758346,88.077,88.007,18.9262875]
[1772732142459,8.43758346,88.109,88.008,8.7022875]
[1772732142653,8.43758346,88.108,88.008,8.7022875]
[1772732142853,18.14985338,88.09,88.022,10.223]
[1772732143062,8.43758346,88.089,88.033,0.07183863]
[1772732143666,8.43758346,88.077,88.012,10.224]
[1772732143858,8.43758346,88.077,88.008,8.7022875]
[1772732144255,8.43758346,88.098,88.021,8.7022875]
[1772732145256,8.43758346,88.098,88.021,3.1022875]
[1772732145457,8.43758346,88.087,88.023,10.223]
[1772732146062,10.215,88.086,88.031,10.222]
[1772732146260,8.43758346,88.107,88.0,9.71226992]
[1772732146460,8.43758346,88.099,88.0,9.71226992]
[1772732147267,8.43758346,88.099,88.03,8.7022875]
[1772732147868,10.213,88.107,88.055,10.219]
[1772732148863,10.213,88.107,88.047,18.9222875]
[1772732149070,8.43758346,88.1,88.029,8.7022875]
[1772732149568,8.43758346,88.1,88.045,10.22]
[1772732150163,8.43758346,88.1,88.052,10.219]
[1772732150563,8.43758346,88.1,88.044,10.22]
[1772732150964,8.43758346,88.1,88.029,8.7022875]
[1772732151170,18.65158346,88.1,88.042,10.22]
[1772732151671,8.43758346,88.1,88.043,8.7022875]
[1772732152265,8.43758346,88.1,88.048,10.22]
[1772732152770,10.214,88.098,88.048,10.22]
[1772732152971,8.43758346,88.1,88.022,8.7022875]